fUSD/lending_fUSD_20240708
["ID","MTS","AMOUNT","RATE_DAILY","PERIOD"]
[331441813,1720415439387,-299.7934,0.000126,2]
[331441815,1720415439399,-237.38829443,0.000126,2]
[331441817,1720415439408,-324.93960865,0.000126,2]
[331441818,1720415439419,-2500.0,0.000126,2]
[331441820,1720415439430,-1005.0,0.000126,2]
[331441822,1720415439440,-83423.05130616,0.000127,2]
[331441824,1720415439453,-406.14258942,0.000127,2]
[331441828,1720415439495,-959.26636,0.000127,2]
[331441830,1720415439508,-23876.33875266,0.000127,2]
[331441832,1720415439520,-2807.6998767,0.000127,2]
[331441834,1720415439532,-339.59477954,0.000127,2]
[331441836,1720415439544,-13425.46661546,0.000127,2]
[331441838,1720415439557,-119762.43972006,0.000127,2]
[331441840,1720415439568,-5402.3655,0.000127,2]
[331441842,1720415439578,-322.635,0.000127,2]
[331441843,1720415439589,-4070.7604,0.000127,2]
[331441845,1720415439599,-9206.0099,0.000127,2]
[331441847,1720415439608,-100000.0,0.000127,2]
[331441849,1720415439619,-150.0,0.00012717,2]
[331441851,1720415439628,-150.0,0.00012726,2]
[331441852,1720415439639,-385.96925274,0.00012727,2]
[331441854,1720415439650,-150.0,0.00012733,2]
[331441856,1720415439659,-300.0,0.00012748,2]
[331441858,1720415439670,-150.0,0.00012755,2]
[331441860,1720415439682,-150.0,0.00012758,2]
[331441861,1720415439693,-150.0,0.0001276,2]
[331441863,1720415439703,-150.0,0.00012764,2]
[331441865,1720415439715,-150.0,0.00012767,2]
[331441867,1720415439725,-150.0,0.00012774,2]
[331441869,1720415439735,-150.0,0.0001278,2]
[331441870,1720415439746,-150.0,0.00012811,2]
[331441872,1720415439759,-150.0,0.00012814,2]
[331441874,1720415439769,-150.0,0.00012821,2]
[331441876,1720415439779,-150.0,0.00012828,2]
[331441878,1720415439789,-237.38829439,0.0001285,2]
[331441880,1720415439800,-150.0,0.0001286,2]
[331441882,1720415439809,-150.0,0.0001286,2]
[331441883,1720415439819,-150.0,0.00012867,2]
[331441885,1720415439829,-150.0,0.0001287,2]
[331441887,1720415439841,-150.0,0.00012873,2]
[331441889,1720415439852,-150.0,0.00012894,2]
[331441891,1720415439862,-500.0,0.00012895,2]
[331441893,1720415439872,-500.0,0.00012896,2]
[331441894,1720415439882,-500.0,0.00012896,2]
[331441896,1720415439892,-150.0,0.00012898,2]
[331441898,1720415439902,-1008.0,0.000129,2]
[331441900,1720415439912,-170.99140817,0.000129,2]
[331441902,1720415439922,-231.90170231,0.000129,2]
[331441903,1720415439932,-150.0,0.00012907,2]
[331441905,1720415439941,-150.0,0.00012908,2]
[331441907,1720415439951,-150.0,0.00012928,2]
[331441909,1720415439961,-150.0,0.00012929,2]
[331441910,1720415439972,-2376.0,0.0001293,2]
[331441912,1720415439983,-1964.0,0.0001293,2]
[331441914,1720415439992,-3249.0,0.0001293,2]
[331441916,1720415440002,-548.0,0.0001293,2]
[331441917,1720415440012,-150.0,0.00012931,2]
[331441919,1720415440022,-150.64423964,0.00012931,2]
[331441921,1720415440033,-1514.59732339,0.00012939,2]
[331441923,1720415440043,-420.0,0.00012947,2]
[331441925,1720415440053,-150.0,0.00012951,2]
[331441927,1720415440066,-150.0,0.00012961,2]
[331441929,1720415440076,-1000.0,0.0001297,2]
[331441931,1720415440086,-1000.0,0.0001297,2]
[331441934,1720415440096,-1000.0,0.0001297,2]
[331441936,1720415440106,-1000.0,0.0001297,2]
[331441938,1720415440116,-1000.0,0.0001297,2]
[331441940,1720415440126,-1917.27539911,0.0001297,2]
[331441942,1720415440136,-500.0,0.0001297,2]
[331441945,1720415440146,-500.0,0.0001297,2]
[331441948,1720415440156,-500.0,0.0001297,2]
[331441950,1720415440166,-500.0,0.0001297,2]
[331441953,1720415440177,-688.16685693,0.0001297,2]
[331441955,1720415440186,-150.0,0.00012974,2]
[331441957,1720415440196,-179.1953478,0.00012981,2]
[331441959,1720415440206,-150.0,0.00012983,2]
[331441961,1720415440216,-324.93960865,0.00012983,2]
[331441963,1720415440226,-170.99140811,0.00012983,2]
[331441964,1720415440236,-298.21104625,0.0001299,2]
[331441966,1720415440245,-7243.7442416,0.0001299,2]
[331441968,1720415440255,-150.0,0.0001299,2]
[331441970,1720415440265,-98824.4223114,0.00012991,2]
[331441972,1720415440276,-7376.9368765,0.00012991,2]
[331441975,1720415440286,-103109.1007018,0.00013,2]
[331441977,1720415440296,-500.0,0.00013,2]
[331441979,1720415440306,-500.0,0.00013,2]
[331441981,1720415440316,-500.0,0.00013,2]
[331441983,1720415440327,-500.0,0.00013,2]
[331441985,1720415440336,-500.0,0.00013,2]
[331441987,1720415440346,-500.0,0.00013,2]
[331441989,1720415440356,-500.0,0.00013,2]
[331441991,1720415440365,-500.0,0.00013,2]
[331441992,1720415440375,-500.0,0.00013,2]
[331441994,1720415440385,-500.0,0.00013,2]
[331441996,1720415440395,-500.0,0.00013,2]
[331441997,1720415440404,-500.0,0.00013,2]
[331441999,1720415440414,-500.0,0.00013,2]
[331442001,1720415440425,-500.0,0.00013,2]
[331442003,1720415440434,-500.0,0.00013,2]
[331442004,1720415440444,-500.0,0.00013,2]
[331442006,1720415440454,-500.0,0.00013,2]
[331442008,1720415440463,-500.0,0.00013,2]
[331442010,1720415440473,-500.0,0.00013,2]
[331442012,1720415440483,-500.0,0.00013,2]
[331442014,1720415440493,-290.77,0.00013,2]
[331442015,1720415440502,-500.0,0.00013,2]
[331442016,1720415440510,-500.0,0.00013,2]
[331442017,1720415440519,-500.0,0.00013,2]
[331442018,1720415440527,-500.0,0.00013,2]
[331442019,1720415440535,-500.0,0.00013,2]
[331442020,1720415440544,-500.0,0.00013,2]
[331442021,1720415440553,-500.0,0.00013,2]
[331442022,1720415440563,-500.0,0.00013,2]
[331442023,1720415440572,-500.0,0.00013,2]
[331442024,1720415440581,-500.0,0.00013,2]
[331442025,1720415440590,-500.0,0.00013,2]
[331442026,1720415440599,-500.0,0.00013,2]
[331442027,1720415440608,-500.0,0.00013,2]
[331442029,1720415440617,-500.0,0.00013,2]
[331442030,1720415440627,-500.0,0.00013,2]
[331442032,1720415440637,-500.0,0.00013,2]
[331442034,1720415440646,-500.0,0.00013,2]
[331442036,1720415440656,-500.0,0.00013,2]
[331442038,1720415440665,-500.0,0.00013,2]
[331442040,1720415440675,-500.0,0.00013,2]
[331442042,1720415440685,-500.0,0.00013,2]
[331442044,1720415440694,-500.0,0.00013,2]
[331442046,1720415440704,-500.0,0.00013,2]
[331442048,1720415440713,-500.0,0.00013,2]
[331442051,1720415440723,-500.0,0.00013,2]
[331442052,1720415440733,-500.0,0.00013,2]
[331442053,1720415440743,-500.0,0.00013,2]
[331442054,1720415440756,-500.0,0.00013,2]
[331442055,1720415440766,-500.0,0.00013,2]
[331442056,1720415440776,-500.0,0.00013,2]
[331442057,1720415440786,-500.0,0.00013,2]
[331442058,1720415440796,-500.0,0.00013,2]
[331442059,1720415440806,-500.0,0.00013,2]
[331442060,1720415440815,-500.0,0.00013,2]
[331442061,1720415440825,-500.0,0.00013,2]
[331442062,1720415440836,-500.0,0.00013,2]
[331442063,1720415440847,-524.01,0.00013,2]
[331442064,1720415440856,-500.0,0.00013,2]
[331442065,1720415440866,-500.0,0.00013,2]
[331442066,1720415440875,-500.0,0.00013,2]
[331442067,1720415440885,-500.0,0.00013,2]
[331442068,1720415440894,-500.0,0.00013,2]
[331442069,1720415440904,-500.0,0.00013,2]
[331442070,1720415440914,-500.0,0.00013,2]
[331442072,1720415440924,-500.0,0.00013,2]
[331442073,1720415440933,-500.0,0.00013,2]
[331442074,1720415440942,-500.0,0.00013,2]
[331442075,1720415440952,-500.0,0.00013,2]
[331442076,1720415440962,-500.0,0.00013,2]
[331442077,1720415440971,-500.0,0.00013,2]
[331442078,1720415440981,-500.0,0.00013,2]
[331442079,1720415440990,-500.0,0.00013,2]
[331442080,1720415441000,-500.0,0.00013,2]
[331442081,1720415441010,-500.0,0.00013,2]
[331442082,1720415441019,-500.0,0.00013,2]
[331442083,1720415441029,-500.0,0.00013,2]
[331442084,1720415441040,-500.0,0.00013,2]
[331442085,1720415441049,-500.0,0.00013,2]
[331442086,1720415441058,-500.0,0.00013,2]
[331442087,1720415441068,-500.0,0.00013,2]
[331442088,1720415441077,-500.0,0.00013,2]
[331442089,1720415441087,-500.0,0.00013,2]
[331442090,1720415441097,-500.0,0.00013,2]
[331442091,1720415441106,-500.0,0.00013,2]
[331442092,1720415441116,-500.0,0.00013,2]
[331442093,1720415441125,-500.0,0.00013,2]
[331442094,1720415441135,-500.0,0.00013,2]
[331442095,1720415441144,-500.0,0.00013,2]
[331442096,1720415441154,-500.0,0.00013,2]
[331442097,1720415441164,-500.0,0.00013,2]
[331442098,1720415441175,-500.0,0.00013,2]
[331442099,1720415441194,-500.0,0.00013,2]
[331442100,1720415441212,-500.0,0.00013,2]
[331442101,1720415441226,-500.0,0.00013,2]
[331442102,1720415441236,-500.0,0.00013,2]
[331442103,1720415441246,-500.0,0.00013,2]
[331442104,1720415441255,-500.0,0.00013,2]
[331442105,1720415441264,-500.0,0.00013,2]
[331442106,1720415441274,-500.0,0.00013,2]
[331442107,1720415441284,-500.0,0.00013,2]
[331442108,1720415441293,-500.0,0.00013,2]
[331442109,1720415441303,-500.0,0.00013,2]
[331442110,1720415441313,-500.0,0.00013,2]
[331442111,1720415441323,-500.0,0.00013,2]
[331442112,1720415441332,-500.0,0.00013,2]
[331442113,1720415441342,-500.0,0.00013,2]
[331442114,1720415441351,-500.0,0.00013,2]
[331442115,1720415441360,-500.0,0.00013,2]
[331442116,1720415441370,-500.0,0.00013,2]
[331442117,1720415441379,-500.0,0.00013,2]
[331442118,1720415441388,-500.0,0.00013,2]
[331442119,1720415441399,-500.0,0.00013,2]
[331442120,1720415441408,-500.0,0.00013,2]
[331442121,1720415441418,-500.0,0.00013,2]
[331442122,1720415441427,-500.0,0.00013,2]
[331442123,1720415441437,-500.0,0.00013,2]
[331442124,1720415441447,-500.0,0.00013,2]
[331442125,1720415441456,-404.12,0.00013,2]
[331442126,1720415441466,-500.0,0.00013,2]
[331442127,1720415441475,-500.0,0.00013,2]
[331442128,1720415441485,-2000.0,0.00013,2]
[331442129,1720415441849,-200.0,0.00013,2]
[331442130,1720415441858,-500.0,0.00013,2]
[331442131,1720415441868,-500.0,0.00013,2]
[331442132,1720415441877,-500.0,0.00013,2]
[331442133,1720415441886,-500.0,0.00013,2]
[331442134,1720415441895,-500.0,0.00013,2]
[331442135,1720415441904,-500.0,0.00013,2]
[331442136,1720415441913,-500.0,0.00013,2]
[331442137,1720415441923,-500.0,0.00013,2]
[331442138,1720415441932,-500.0,0.00013,2]
[331442139,1720415441941,-500.0,0.00013,2]
[331442140,1720415441950,-500.0,0.00013,2]
[331442141,1720415441959,-500.0,0.00013,2]
[331442142,1720415441969,-500.0,0.00013,2]
[331442143,1720415441978,-500.0,0.00013,2]
[331442144,1720415441987,-500.0,0.00013,2]
[331442145,1720415441996,-500.0,0.00013,2]
[331442146,1720415442005,-500.0,0.00013,2]
[331442147,1720415442014,-500.0,0.00013,2]
[331442148,1720415442023,-500.0,0.00013,2]
[331442149,1720415442032,-500.0,0.00013,2]
[331442150,1720415442041,-500.0,0.00013,2]
[331442151,1720415442050,-500.0,0.00013,2]
[331442152,1720415442059,-500.0,0.00013,2]
[331442153,1720415442070,-500.0,0.00013,2]
[331442154,1720415442079,-500.0,0.00013,2]
[331442155,1720415442088,-500.0,0.00013,2]
[331442156,1720415442098,-500.0,0.00013,2]
[331442157,1720415442107,-500.0,0.00013,2]
[331442158,1720415442116,-500.0,0.00013,2]
[331442159,1720415442125,-500.0,0.00013,2]
[331442160,1720415442135,-500.0,0.00013,2]
[331442161,1720415442144,-500.0,0.00013,2]
[331442162,1720415442152,-500.0,0.00013,2]
[331442163,1720415442161,-500.0,0.00013,2]
[331442164,1720415442171,-500.0,0.00013,2]
[331442165,1720415442181,-500.0,0.00013,2]
[331442166,1720415442190,-500.0,0.00013,2]
[331442167,1720415442199,-500.0,0.00013,2]
[331442168,1720415442208,-500.0,0.00013,2]
[331442169,1720415442218,-500.0,0.00013,2]
[331442170,1720415442227,-500.0,0.00013,2]
[331442171,1720415442236,-500.0,0.00013,2]
[331442172,1720415442245,-509.25,0.00013,2]
[331442173,1720415442255,-1000.0,0.00013,2]
[331442174,1720415442264,-500.0,0.00013,2]
[331442175,1720415442274,-500.0,0.00013,2]
[331442176,1720415442283,-500.0,0.00013,2]
[331442177,1720415442293,-2000.0,0.00013,2]
[331442178,1720415442302,-200.0,0.00013,2]
[331442179,1720415442311,-200.00000004,0.00013,2]
[331442180,1720415442320,-200.0,0.00013,2]
[331442181,1720415442330,-378.26436,0.00013,2]
[331442182,1720415442339,-200.0,0.00013,2]
[331442183,1720415442348,-3820.666288,0.00013014,2]
[331442184,1720415442358,-177.367032,0.00013014,2]
[331442185,1720415442367,-3165.220376,0.00013014,2]
[331442186,1720415442376,-888.274696,0.00013014,2]
[331442187,1720415442385,-189.291138,0.00013014,2]
[331442188,1720415442394,-154.685864,0.00013014,2]
[331442189,1720415442403,-162.151169,0.00013014,2]
[331442190,1720415442412,-7347.940274,0.00013014,2]
[331442191,1720415442422,-150.0,0.00013014,2]
[331442192,1720415442431,-167.560964,0.00013014,2]
[331442193,1720415442441,-280.706829,0.00013014,2]
[331442194,1720415442450,-163.740232,0.00013014,2]
[331442195,1720415442459,-198.106994,0.00013014,2]
[331442196,1720415442469,-194.415627,0.00013014,2]
[331442197,1720415442479,-808.120304,0.00013014,2]
[331442198,1720415442489,-1145.440627,0.00013014,2]
[331442199,1720415442498,-777.662508,0.00013014,2]
[331442200,1720415442507,-237.38829439,0.000131,2]
[331442201,1720415442517,-462.12662794,0.00013128,2]
[331442202,1720415442526,-208.6813478,0.00013128,2]
[331442203,1720415442535,-2000.0,0.0001313,2]
[331442204,1720415442544,-200.0,0.0001313,2]
[331442205,1720415442553,-2000.0,0.0001313,2]
[331442206,1720415442563,-200.0,0.0001313,2]
[331442207,1720415442572,-200.0,0.0001313,2]
[331442208,1720415442581,-200.0,0.0001313,2]
[331442209,1720415442591,-179.954349,0.00013148,2]
[331442210,1720415442600,-179.954348,0.00013148,2]
[331442211,1720415442610,-176.39412,0.00013148,2]
[331442212,1720415442619,-721.581319,0.00013148,2]
[331442213,1720415442628,-193.75241,0.00013148,2]
[331442214,1720415442637,-184.490051,0.00013148,2]
[331442215,1720415442646,-229.044622,0.00013148,2]
[331442216,1720415442655,-5814.0,0.00013162,2]
[331442217,1720415442664,-1199.0,0.00013162,2]
[331442218,1720415442674,-1670.867,0.00013162,2]
[331442219,1720415442683,-4343.934,0.00013162,2]
[331442220,1720415442692,-14714.414,0.00013162,2]
[331442221,1720415442701,-1071.0,0.00013162,2]
[331442222,1720415442710,-3820.666288,0.00013177,2]
[331442223,1720415442720,-3165.220376,0.00013177,2]
[331442224,1720415442729,-888.274696,0.00013177,2]
[331442225,1720415442738,-7347.940274,0.00013177,2]
[331442226,1720415442748,-280.706829,0.00013177,2]
[331442227,1720415442762,-194.415627,0.00013177,2]
[331442228,1720415442771,-808.120304,0.00013177,2]
[331442229,1720415442781,-1145.440627,0.00013177,2]
[331442230,1720415442790,-777.662508,0.00013177,2]
[331442231,1720415442803,-275.85,0.0001319,2]
[331442232,1720415442813,-170.63,0.0001319,2]
[331442233,1720415442822,-301.37,0.0001319,2]
[331442234,1720415442835,-150.0,0.0001319,2]
[331442235,1720415442846,-355.03,0.0001319,2]
[331442236,1720415442856,-534.66,0.0001319,2]
[331442237,1720415442866,-429.56,0.0001319,2]
[331442238,1720415442876,-164.95,0.0001319,2]
[331442239,1720415442886,-528.73,0.0001319,2]
[331442240,1720415442896,-164.95,0.0001319,2]
[331442241,1720415442905,-424.55,0.0001319,2]
[331442242,1720415442915,-150.0,0.0001319,2]
[331442243,1720415442925,-376.83,0.0001319,2]
[331442244,1720415442938,-150.0,0.0001319,2]
[331442245,1720415442947,-164.95,0.0001319,2]
[331442246,1720415442956,-150.0,0.0001319,2]
[331442247,1720415442965,-164.95,0.0001319,2]
[331442248,1720415442974,-231.90170231,0.00013193,2]
[331442249,1720415442984,-178.45990259,0.00013215,2]
[331442250,1720415442994,-162.151169,0.00013231,2]
[331442251,1720415443003,-2000.0,0.00013261,2]
[331442252,1720415443012,-200.0,0.00013261,2]
[331442253,1720415443021,-2000.0,0.00013261,2]
[331442254,1720415443030,-200.0,0.00013261,2]
[331442255,1720415443040,-200.0,0.00013261,2]
[331442256,1720415443049,-200.0,0.00013261,2]
[331442257,1720415443058,-7500.0,0.00013267,2]
[331442258,1720415443068,-1600.0,0.00013286,2]
[331442259,1720415443077,-300.416,0.00013286,2]
[331442260,1720415443087,-182.34687994,0.00013294,2]
[331442261,1720415443096,-1000.0,0.000133,2]
[331442262,1720415443106,-721.581319,0.00013312,2]
[331442263,1720415443115,-229.044622,0.00013312,2]
[331442264,1720415443124,-1002.0,0.00013315,2]
[331442265,1720415443134,-151.477,0.00013315,2]
[331442266,1720415443143,-150.166,0.00013315,2]
[331442267,1720415443153,-1107.723,0.00013315,2]
[331442268,1720415443162,-362.018,0.00013315,2]
[331442269,1720415443173,-1846.945,0.00013315,2]
[331442270,1720415443182,-467.741,0.00013315,2]
[331442271,1720415443192,-150.439,0.00013315,2]
[331442272,1720415443201,-166.995,0.00013315,2]
[331442273,1720415443211,-809.0,0.00013315,2]
[331442274,1720415443220,-450.077,0.00013315,2]
[331442276,1720415443230,-1304.0,0.00013315,2]
[331442277,1720415443239,-3820.666288,0.0001334,2]
[331442278,1720415443249,-3165.220376,0.0001334,2]
[331442279,1720415443258,-888.274696,0.0001334,2]
[331442280,1720415443267,-7347.940274,0.0001334,2]
[331442281,1720415443276,-150.0,0.0001334,2]
[331442282,1720415443285,-280.706829,0.0001334,2]
[331442283,1720415443294,-194.415627,0.0001334,2]
[331442284,1720415443303,-808.120304,0.0001334,2]
[331442285,1720415443312,-1145.440627,0.0001334,2]
[331442286,1720415443321,-777.662508,0.0001334,2]
[331442287,1720415443330,-237.38829439,0.00013349,2]
[331442289,1720415443339,-324.93960865,0.00013367,2]
[331442291,1720415443349,-170.99140811,0.00013367,2]
[331442292,1720415443358,-176.39412,0.00013367,2]
[331442293,1720415443367,-150.36,0.0001337,2]
[331442294,1720415443376,-150.0,0.0001337,2]
[331442295,1720415443385,-150.0,0.0001337,2]
[331442296,1720415443394,-150.0,0.0001337,2]
[331442297,1720415443403,-150.0,0.0001337,2]
[331442298,1720415443412,-150.0,0.0001337,2]
[331442300,1720415443421,-300.0,0.0001337,2]
[331442301,1720415443432,-1000.0,0.00013372,2]
[331442302,1720415443441,-2000.0,0.00013394,2]
[331442303,1720415443451,-200.0,0.00013394,2]
[331442304,1720415443460,-2000.0,0.00013394,2]
[331442305,1720415443468,-156.37359254,0.00013394,2]
[331442306,1720415443477,-200.0,0.00013394,2]
[331442307,1720415443486,-200.0,0.00013394,2]
[331442308,1720415443495,-1000.0,0.000134,2]
[331442309,1720415443504,-225.0,0.000134,2]
[331442310,1720415443513,-511.4,0.000134,2]
[331442311,1720415443522,-356.0,0.000134,2]
[331442312,1720415443531,-46357.0,0.00013426,2]
[331442313,1720415443541,-162.151169,0.00013448,2]
[331442314,1720415443550,-167.81484512,0.00013467,2]
[331442315,1720415443559,-721.581319,0.00013477,2]
[331442316,1720415443569,-229.044622,0.00013477,2]
[331442317,1720415443578,-231.90170231,0.00013486,2]
[331442318,1720415443588,-3820.666288,0.00013503,2]
[331442319,1720415443596,-3165.220376,0.00013503,2]
[331442320,1720415443605,-888.274696,0.00013503,2]
[331442321,1720415443614,-7347.940274,0.00013503,2]
[331442322,1720415443623,-280.706829,0.00013503,2]
[331442323,1720415443633,-194.415627,0.00013503,2]
[331442324,1720415443642,-808.120304,0.00013503,2]
[331442325,1720415443651,-1145.440627,0.00013503,2]
[331442326,1720415443660,-777.662508,0.00013503,2]
[331442327,1720415443669,-227.24934482,0.00013516,2]
[331442328,1720415443680,-200.0,0.00013528,2]
[331442329,1720415443689,-200.0,0.00013528,2]
[331442330,1720415443698,-31165.0,0.00013562,2]
[331442331,1720415443708,-1000.0,0.0001357,2]
[331442332,1720415443717,-500.0,0.0001357,2]
[331442333,1720415443727,-631.30900056,0.00013574,2]
[331442334,1720415443736,-65958.41427548,0.00013574,2]
[331442335,1720415443786,-998.52381322,0.00013574,2]
[331442336,1720415443798,-6524.58172539,0.00013574,2]
[331442337,1720415443810,-35836.87924201,0.00013574,2]
[331442338,1720415443821,-969.78150889,0.00013574,2]
[331442339,1720415443893,-1242.44162706,0.00013574,2]
[331442340,1720415443975,-1886.88,0.00013574,2]
[331442341,1720415445349,-384.644286,0.00013574,2]
[331442342,1720415445507,-156072.65845396,0.00013574,2]
[331442343,1720415445517,-176.39412,0.00013586,2]
[331442344,1720415445526,-3987.8522409,0.00013599,2]
[331442345,1720415445535,-237.38829439,0.00013599,2]
[331442346,1720415445544,-721.581319,0.00013641,2]
[331442347,1720415445554,-229.044622,0.00013641,2]
[331442348,1720415445563,-793.33991595,0.00013665,2]
[331442349,1720415445575,-3027.32637205,0.00013665,2]
[331442350,1720415445583,-1371.96585936,0.00013665,2]
[331442351,1720415445594,-1793.25451664,0.00013665,2]
[331442352,1720415445604,-189.291138,0.00013665,2]
[331442353,1720415445613,-154.685864,0.00013665,2]
[331442354,1720415445622,-103.14271133,0.00013665,2]
[331442355,1720415445633,-744.63634586,0.00013665,2]
[331442356,1720415445650,-40.49563881,0.00013665,2]
[331442357,1720415445660,-494.32303382,0.00013665,2]
[331442358,1720415445976,-774.14849716,0.00013665,2]
[331442359,1720415445987,-2326.50000047,0.00013665,2]
[331442360,1720415446046,-2980.52193553,0.00013665,2]
[331442361,1720415446058,-527.39556223,0.00013665,2]
[331442362,1720415446069,-245.05124479,0.00013665,2]
[331442363,1720415446078,-150.0,0.00013665,2]
[331442364,1720415446087,-280.706829,0.00013665,2]
[331442365,1720415446096,-194.415627,0.00013665,2]
[331442366,1720415446105,-178.40906221,0.00013665,2]
[331442367,1720415446116,-629.71124179,0.00013665,2]
[331442368,1720415446125,-484.6831251,0.00013665,2]
[331442369,1720415446136,-660.7575019,0.00013665,2]
[331442370,1720415446146,-639.71923455,0.00013665,2]
[331442372,1720415446185,-137.94327345,0.00013665,2]
[331442373,1720415446194,-162.151169,0.00013665,2]
[331442374,1720415446203,-407.02892449,0.00013698,2]
[331442375,1720415446219,-92.97107551,0.00013698,2]
[331442376,1720415446228,-327.71692349,0.00013698,2]
[331442377,1720415446412,329.84,9.984e-05,2]
[331442379,1720415447667,-329.84,0.00012248,2]
[331442380,1720415447676,-172.28307651,0.00013698,2]
[331442381,1720415447686,-187.27192351,0.00013698,2]
[331442382,1720415447729,-195.93569581,0.00013698,2]
[331442383,1720415447738,-500.0,0.00013698,2]
[331442384,1720415447748,-260.81687492,0.00013698,2]
[331442385,1720415447760,-157.92742927,0.00013698,2]
[331442386,1720415447771,-342.07257073,0.00013698,2]
[331442387,1720415447780,-500.0,0.00013698,2]
[331442388,1720415447789,-500.0,0.00013698,2]
[331442389,1720415447799,-500.0,0.00013698,2]
[331442390,1720415447808,-509.67804727,0.00013698,2]
[331442391,1720415447863,-100.73063866,0.00013698,2]
[331442392,1720415447873,-458.36936134,0.00013698,2]
[331442393,1720415447898,-41.63063866,0.00013698,2]
[331442394,1720415447908,-500.0,0.00013698,2]
[331442395,1720415447918,-169.15145075,0.00013698,2]
[331442396,1720415447928,-403.08803129,0.00013698,2]
[331442402,1720415450587,-96.91196871,0.00013698,2]
[331442403,1720415450596,-202.01938063,0.00013698,2]
[331442404,1720415450660,-297.98061937,0.00013698,2]
[331442405,1720415450670,-500.0,0.00013698,2]
[331442406,1720415450680,-500.0,0.00013698,2]
[331442407,1720415450689,-300.2782165,0.00013698,2]
[331442408,1720415452283,-631.30900056,0.00013574,2]
[331442409,1720415452292,-199.7217835,0.00013698,2]
[331442410,1720415452302,-500.0,0.00013698,2]
[331442411,1720415452311,-500.0,0.00013698,2]
[331442412,1720415452320,-500.0,0.00013698,2]
[331442413,1720415452330,-220.02596766,0.00013698,2]
[331442414,1720415452339,-311.36212857,0.00013698,2]
[331442415,1720415944547,171.19720146,0.00027,120]
[331442416,1720416058034,350.43,0.00010286,2]
[331442417,1720416306625,227.24934482,0.00011199,2]
[331442434,1720416601557,227.24934482,0.00011199,2]
[331442451,1720416632509,-770.55069158,0.00012027,2]
[331442452,1720416632519,-3886.42,0.00012106,2]
[331442453,1720416632530,-1000.0,0.00012127,2]
[331442454,1720416632542,-250.0,0.00012246,2]
[331442455,1720416632553,-46432.0,0.00012247,2]
[331442456,1720416632564,-9206.0099,0.000125,2]
[331442457,1720416632575,-322.635,0.000125,2]
[331442458,1720416632590,-4070.7604,0.000125,2]
[331442459,1720416632600,-3960.57050876,0.000125,2]
[331442460,1720416632614,-1441.79499124,0.000125,2]
[331442461,1720416632625,-469.8833,0.000125,2]
[331442462,1720416632635,-281.5795,0.000125,2]
[331442463,1720416632646,-2500.0,0.000125,2]
[331442464,1720416632658,-178.0412208,0.000125,2]
[331442465,1720416632669,-2094.2523,0.000125,2]